fUSD/lending_fUSD_20240119
["ID","MTS","AMOUNT","RATE_DAILY","PERIOD"]
[312137695,1705666320780,-2317.69,0.00024092,2]
[312137696,1705666320791,-2438.45,0.00024092,2]
[312137697,1705666320802,-1132.89,0.00024092,2]
[312137698,1705666320814,-500.0,0.00024092,2]
[312137699,1705666320825,-2244.99,0.00024092,2]
[312137700,1705666320836,-2276.25,0.00024092,2]
[312137701,1705666320847,-500.0,0.00024092,2]
[312137702,1705666320858,-2345.08,0.00024092,2]
[312137703,1705666320869,-1779.06,0.00024092,2]
[312137704,1705666320880,-1247.58,0.00024092,2]
[312137705,1705666320892,-1265.86,0.00024092,2]
[312137706,1705666320903,-4824.73,0.00024092,2]
[312137707,1705666320914,-1351.04,0.00024092,2]
[312137708,1705666320926,-500.0,0.00024093,2]
[312137709,1705666320937,-564.91,0.00024093,2]
[312137710,1705666320948,-500.0,0.00024093,2]
[312137711,1705666320960,-502.41,0.00024093,2]
[312137712,1705666320971,-568.67,0.00024093,2]
[312137713,1705666320983,-500.0,0.00024093,2]
[312137714,1705666320994,-500.0,0.00024093,2]
[312137715,1705666321005,-500.0,0.00024093,2]
[312137716,1705666321017,-500.0,0.00024093,2]
[312137717,1705666321028,-500.0,0.00024093,2]
[312137718,1705666321080,-500.0,0.00024093,2]
[312137719,1705666321092,-500.0,0.00024093,2]
[312137720,1705666321104,-579.96,0.00024093,2]
[312137721,1705666321116,-500.0,0.00024093,2]
[312137722,1705666321127,-514.75,0.00024093,2]
[312137723,1705666321138,-842.5,0.00024093,2]
[312137724,1705666321150,-500.0,0.00024093,2]
[312137725,1705666321162,-500.0,0.00024093,2]
[312137726,1705666321173,-500.0,0.00024093,2]
[312137727,1705666321184,-500.0,0.00024093,2]
[312137728,1705666321197,-500.0,0.00024093,2]
[312137729,1705666321206,-500.0,0.00024093,2]
[312137730,1705666321217,-639.73,0.00024093,2]
[312137731,1705666321228,-1003.11,0.00024093,2]
[312137732,1705666321238,-500.0,0.00024093,2]
[312137733,1705666321249,-500.0,0.00024093,2]
[312137734,1705666321260,-500.0,0.00024093,2]
[312137735,1705666321271,-268.25840442,0.00024093,2]
[312137736,1705666321281,-500.0,0.00024093,2]
[312137737,1705666321293,-500.0,0.00024093,2]
[312137738,1705666321304,-500.0,0.00024093,2]
[312137739,1705666321314,-500.0,0.00024093,2]
[312137740,1705666321325,-500.0,0.00024093,2]
[312137741,1705666321336,-500.0,0.00024093,2]
[312137742,1705666321347,-500.0,0.00024093,2]
[312137743,1705666321357,-500.0,0.00024093,2]
[312137744,1705666321368,-500.0,0.00024093,2]
[312137745,1705666321379,-500.0,0.00024093,2]
[312137746,1705666321390,-520.06,0.00024093,2]
[312137747,1705666321401,-522.38,0.00024093,2]
[312137748,1705666321412,-951.95,0.00024093,2]
[312137749,1705666321423,-500.0,0.00024093,2]
[312137750,1705666321435,-500.0,0.00024093,2]
[312137751,1705666321446,-500.0,0.00024093,2]
[312137752,1705666321457,-500.0,0.00024093,2]
[312137753,1705666321469,-500.0,0.00024093,2]
[312137754,1705666321481,-503.66262729,0.00024093,2]
[312137755,1705666321494,-500.0,0.00024093,2]
[312137756,1705666321505,-500.0,0.00024093,2]
[312137757,1705666321517,-500.0,0.00024093,2]
[312137758,1705666321527,-1016.97,0.00024093,2]
[312137759,1705666321537,-500.0,0.00024093,2]
[312137760,1705666321548,-500.0,0.00024093,2]
[312137761,1705666321559,-500.0,0.00024093,2]
[312137762,1705666321571,-500.0,0.00024093,2]
[312137763,1705666321583,-500.0,0.00024093,2]
[312137764,1705666321594,-500.0,0.00024093,2]
[312137765,1705666321605,-500.0,0.00024093,2]
[312137766,1705666321617,-500.0,0.00024093,2]
[312137767,1705666321628,-500.0,0.00024093,2]
[312137768,1705666321641,-500.0,0.00024093,2]
[312137769,1705666321652,-500.0,0.00024093,2]
[312137770,1705666321664,-500.0,0.00024093,2]
[312137771,1705666321676,-500.0,0.00024093,2]
[312137772,1705666321686,-742.91,0.00024093,2]
[312137773,1705666321698,-500.0,0.00024093,2]
[312137774,1705666321709,-500.0,0.00024093,2]
[312137775,1705666321720,-500.0,0.00024093,2]
[312137776,1705666321733,-625.1,0.00024093,2]
[312137777,1705666321744,-500.0,0.00024093,2]
[312137778,1705666321757,-551.17848744,0.00024093,2]
[312137779,1705666321768,-500.0,0.00024093,2]
[312137780,1705666321779,-500.0,0.00024093,2]
[312137781,1705666321791,-538.32,0.00024093,2]
[312137782,1705666321803,-500.0,0.00024093,2]
[312137783,1705666321815,-297.90117986,0.00024093,2]
[312137784,1705666321826,-536.45,0.00024093,2]
[312137785,1705666321838,-661.07,0.00024093,2]
[312137786,1705666321849,-500.0,0.00024093,2]
[312137787,1705666321860,-500.0,0.00024093,2]
[312137788,1705666321872,-276.99457846,0.00024093,2]
[312137789,1705666321884,-500.0,0.00024093,2]
[312137790,1705666321895,-501.35,0.00024093,2]
[312137791,1705666321909,-500.0,0.00024093,2]
[312137792,1705666321921,-500.0,0.00024093,2]
[312137793,1705666321937,-500.0,0.00024093,2]
[312137794,1705666321949,-500.0,0.00024093,2]
[312137795,1705666321960,-505.27,0.00024093,2]
[312137796,1705666321972,-500.0,0.00024093,2]
[312137797,1705666321983,-500.0,0.00024093,2]
[312137798,1705666321995,-1361.89,0.00024093,2]
[312137799,1705666322007,-506.14620213,0.00024093,2]
[312137800,1705666322019,-500.0,0.00024093,2]
[312137801,1705666322030,-500.0,0.00024093,2]
[312137802,1705666322041,-930.39,0.00024093,2]
[312137803,1705666322052,-500.0,0.00024093,2]
[312137804,1705666322064,-500.0,0.00024093,2]
[312137805,1705666322074,-500.0,0.00024093,2]
[312137806,1705666322085,-500.0,0.00024093,2]
[312137807,1705666322096,-500.0,0.00024093,2]
[312137808,1705666322108,-500.0,0.00024093,2]
[312137809,1705666322119,-500.0,0.00024093,2]
[312137810,1705666322131,-987.25,0.00024093,2]
[312137811,1705666322142,-500.0,0.00024093,2]
[312137812,1705666322153,-500.0,0.00024093,2]
[312137813,1705666322165,-500.0,0.00024093,2]
[312137814,1705666322176,-500.0,0.00024093,2]
[312137815,1705666322187,-500.0,0.00024093,2]
[312137816,1705666322198,-500.0,0.00024093,2]
[312137817,1705666322210,-500.0,0.00024093,2]
[312137818,1705666322221,-500.0,0.00024093,2]
[312137819,1705666322232,-804.04,0.00024093,2]
[312137820,1705666322243,-500.0,0.00024093,2]
[312137821,1705666322256,-834.1,0.00024093,2]
[312137822,1705666322267,-500.0,0.00024093,2]
[312137823,1705666322282,-530.68,0.00024093,2]
[312137824,1705666322294,-500.0,0.00024093,2]
[312137825,1705666322305,-2493.17,0.00024093,2]
[312137826,1705666322317,-500.0,0.00024093,2]
[312137827,1705666322328,-882.8,0.00024093,2]
[312137828,1705666322340,-573.74,0.00024093,2]
[312137829,1705666322351,-500.0,0.00024093,2]
[312137830,1705666322362,-500.0,0.00024093,2]
[312137831,1705666322373,-615.64,0.00024093,2]
[312137832,1705666322385,-674.04,0.00024093,2]
[312137833,1705666322397,-500.0,0.00024093,2]
[312137834,1705666322410,-500.0,0.00024093,2]
[312137835,1705666322422,-500.0,0.00024093,2]
[312137836,1705666322434,-1047.1,0.00024093,2]
[312137837,1705666322445,-500.0,0.00024093,2]
[312137838,1705666322457,-500.0,0.00024093,2]
[312137839,1705666322469,-500.0,0.00024093,2]
[312137840,1705666322481,-500.0,0.00024093,2]
[312137841,1705666322494,-500.0,0.00024093,2]
[312137842,1705666322507,-830.43,0.00024093,2]
[312137843,1705666322520,-500.0,0.00024093,2]
[312137844,1705666322533,-500.0,0.00024093,2]
[312137845,1705666322546,-500.0,0.00024093,2]
[312137846,1705666322559,-500.0,0.00024093,2]
[312137847,1705666322571,-634.94,0.00024093,2]
[312137848,1705666322584,-500.0,0.00024093,2]
[312137849,1705666322596,-833.55,0.00024093,2]
[312137850,1705666322608,-816.25,0.00024093,2]
[312137851,1705666322621,-500.0,0.00024093,2]
[312137852,1705666322634,-500.0,0.00024093,2]
[312137853,1705666322646,-793.96,0.00024093,2]
[312137854,1705666322658,-500.0,0.00024093,2]
[312137855,1705666322670,-500.0,0.00024093,2]
[312137856,1705666322682,-500.0,0.00024093,2]
[312137857,1705666322694,-640.60947639,0.00024093,2]
[312137858,1705666322707,-680.83,0.00024093,2]
[312137859,1705666322719,-500.0,0.00024093,2]
[312137860,1705666322732,-1052.77,0.00024093,2]
[312137861,1705666322744,-500.0,0.00024093,2]
[312137862,1705666322755,-500.0,0.00024093,2]
[312137863,1705666322767,-959.44,0.00024093,2]
[312137864,1705666322779,-500.0,0.00024093,2]
[312137865,1705666322792,-500.0,0.00024093,2]
[312137866,1705666322804,-500.0,0.00024093,2]
[312137867,1705666322816,-1805.01,0.00024093,2]
[312137868,1705666322828,-500.0,0.00024093,2]
[312137869,1705666322839,-500.0,0.00024093,2]
[312137870,1705666322851,-599.36709493,0.00024093,2]
[312137871,1705666322863,-500.0,0.00024093,2]
[312137872,1705666322876,-2839.77,0.00024093,2]
[312137873,1705666322890,-790.25,0.00024093,2]
[312137874,1705666322903,-500.0,0.00024093,2]
[312137875,1705666322921,-500.0,0.00024093,2]
[312137876,1705666322940,-520.62,0.00024093,2]
[312137877,1705666322955,-4249.75,0.00024093,2]
[312137878,1705666322967,-3411.47,0.00024093,2]
[312137879,1705666322979,-500.0,0.00024093,2]
[312137880,1705666322992,-2837.35,0.00024093,2]
[312137881,1705666323005,-500.0,0.00024093,2]
[312137882,1705666323018,-500.0,0.00024093,2]
[312137883,1705666323032,-5228.14,0.00024093,2]
[312137884,1705666323045,-931.26,0.00024093,2]
[312137885,1705666323057,-500.0,0.00024093,2]
[312137886,1705666323070,-500.0,0.00024093,2]
[312137887,1705666323083,-500.0,0.00024093,2]
[312137888,1705666323095,-1306.88,0.00024093,5]
[312137889,1705666323109,-500.0,0.00024093,2]
[312137890,1705666323122,-1111.12,0.00024093,2]
[312137891,1705666323136,-4809.82,0.00024093,2]
[312137892,1705666323148,-629.42,0.00024093,2]
[312137893,1705666323160,-500.0,0.00024093,2]
[312137894,1705666323174,-5302.03,0.00024093,2]
[312137895,1705666323185,-242.67875693,0.00024093,2]
[312137896,1705666323198,-500.0,0.00024093,2]
[312137897,1705666323211,-500.0,0.00024093,2]
[312137898,1705666323223,-500.0,0.00024093,2]
[312137899,1705666323236,-548.62,0.00024093,2]
[312137900,1705666323248,-500.0,0.00024093,2]
[312137901,1705666323260,-500.0,0.00024093,2]
[312137902,1705666323272,-500.0,0.00024093,2]
[312137903,1705666323285,-500.0,0.00024093,2]
[312137904,1705666323297,-886.28,0.00024093,2]
[312137905,1705666323309,-877.94,0.00024093,2]
[312137906,1705666323321,-500.0,0.00024093,2]
[312137907,1705666323332,-724.04,0.00024093,2]
[312137908,1705666323344,-3371.7,0.00024093,2]
[312137909,1705666323357,-596.58,0.00024093,2]
[312137910,1705666323370,-500.0,0.00024093,2]
[312137911,1705666323382,-4400.66,0.00024093,2]
[312137912,1705666323394,-500.0,0.00024093,2]
[312137913,1705666323408,-988.81,0.00024093,2]
[312137914,1705666323421,-500.0,0.00024093,2]
[312137915,1705666323434,-827.84,0.00024093,2]
[312137916,1705666323447,-669.84,0.00024093,2]
[312137917,1705666323459,-500.0,0.00024093,2]
[312137918,1705666323472,-500.0,0.00024093,2]
[312137919,1705666323484,-300.0,0.00024093,2]
[312137920,1705666323496,-558.63,0.00024093,2]
[312137921,1705666323509,-2045.96,0.00024093,2]
[312137922,1705666323521,-500.0,0.00024093,2]
[312137923,1705666323534,-3996.45,0.00024093,2]
[312137924,1705666323547,-500.0,0.00024093,2]
[312137925,1705666323559,-500.0,0.00024093,2]
[312137926,1705666323571,-612.06,0.00024093,2]
[312137927,1705666323582,-500.0,0.00024093,2]
[312137928,1705666323595,-500.0,0.00024093,2]
[312137929,1705666323608,-2049.86,0.00024093,2]
[312137930,1705666323620,-868.63,0.00024093,2]
[312137931,1705666323632,-591.26,0.00024093,2]
[312137932,1705666323644,-296.20698572,0.00024093,2]
[312137933,1705666323657,-500.0,0.00024093,2]
[312137934,1705666323670,-500.0,0.00024093,2]
[312137935,1705666323682,-2549.06,0.00024093,2]
[312137936,1705666323694,-500.0,0.00024093,2]
[312137937,1705666323706,-434.83676674,0.00024093,2]
[312137938,1705666323719,-500.0,0.00024093,2]
[312137939,1705666323732,-587.35,0.00024093,2]
[312137940,1705666323745,-1768.63,0.00024093,2]
[312137941,1705666323758,-500.0,0.00024093,2]
[312137942,1705666323771,-500.0,0.00024093,2]
[312137943,1705666323784,-500.0,0.00024093,2]
[312137944,1705666323797,-1408.95,0.00024093,2]
[312137945,1705666323810,-500.0,0.00024093,2]
[312137946,1705666323823,-3266.27,0.00024093,2]
[312137947,1705666323836,-560.98765293,0.00024093,2]
[312137948,1705666323849,-424.2054654,0.00024093,2]
[312137949,1705666323861,-500.0,0.00024093,2]
[312137950,1705666323874,-1854.3,0.00024093,2]
[312137951,1705666323886,-500.0,0.00024093,2]
[312137952,1705666323897,-638.39,0.00024093,2]
[312137953,1705666323910,-500.0,0.00024093,2]
[312137954,1705666323922,-1678.82,0.00024093,2]
[312137955,1705666323934,-614.16,0.00024093,2]
[312137956,1705666323945,-854.41,0.00024093,2]
[312137957,1705666323957,-964.22,0.00024093,2]
[312137958,1705666323971,-1518.27,0.00024093,2]
[312137959,1705666323983,-500.0,0.00024093,2]
[312137960,1705666323996,-2179.92,0.00024093,2]
[312137961,1705666324009,-500.0,0.00024093,2]
[312137962,1705666324022,-500.0,0.00024094,2]
[312137963,1705666324035,-588.64,0.00024094,2]
[312137964,1705666324048,-500.0,0.00024094,2]
[312137965,1705666324059,-609.91,0.00024094,2]
[312137966,1705666324072,-500.0,0.00024094,2]
[312137967,1705666324084,-508.79937155,0.00024094,2]
[312137968,1705666324097,-500.0,0.00024094,2]
[312137969,1705666324110,-500.0,0.00024094,2]
[312137970,1705666324123,-500.0,0.00024094,2]
[312137971,1705666324136,-500.0,0.00024094,2]
[312137972,1705666324148,-607.72,0.00024094,2]
[312137973,1705666324162,-451.95373875,0.00024094,2]
[312137974,1705666324176,-500.0,0.00024094,2]
[312137975,1705666324189,-500.0,0.00024094,2]
[312137976,1705666324202,-604.29,0.00024094,2]
[312137977,1705666324214,-767.29,0.00024094,2]
[312137978,1705666324227,-573.87,0.00024094,2]
[312137979,1705666324240,-500.0,0.00024094,2]
[312137980,1705666324253,-500.0,0.00024094,2]
[312137981,1705666324265,-500.0,0.00024094,2]
[312137982,1705666324277,-828.77,0.00024094,2]
[312137983,1705666324290,-500.0,0.00024094,2]
[312137984,1705666324302,-500.0,0.00024094,2]
[312137985,1705666324315,-500.0,0.00024094,2]
[312137986,1705666324328,-500.0,0.00024094,2]
[312137987,1705666324341,-500.0,0.00024094,2]
[312137988,1705666324353,-255.14007765,0.00024094,2]
[312137989,1705666324365,-500.0,0.00024094,2]
[312137990,1705666324377,-500.0,0.00024094,2]
[312137991,1705666324390,-500.0,0.00024094,2]
[312137992,1705666324403,-572.89,0.00024094,2]
[312137993,1705666324415,-500.0,0.00024094,2]
[312137994,1705666324429,-500.0,0.00024094,2]
[312137995,1705666324442,-662.42,0.00024094,2]
[312137996,1705666324456,-500.0,0.00024094,2]
[312137997,1705666324468,-500.0,0.00024094,2]
[312137998,1705666324481,-500.0,0.00024094,2]
[312137999,1705666324494,-500.0,0.00024094,2]
[312138000,1705666324507,-692.21,0.00024094,2]
[312138001,1705666324519,-635.17732902,0.00024094,2]
[312138002,1705666324531,-500.0,0.00024094,2]
[312138003,1705666324543,-505.94,0.00024094,2]
[312138004,1705666324556,-700.62,0.00024094,2]
[312138005,1705666324568,-843.53,0.00024094,2]
[312138006,1705666324580,-500.0,0.00024094,2]
[312138007,1705666324592,-185.67919677,0.00024094,2]
[312138008,1705666324604,-561.36,0.00024094,2]
[312138009,1705666324616,-500.0,0.00024094,2]
[312138010,1705666324629,-620.37,0.00024094,2]
[312138011,1705666324642,-500.0,0.00024094,2]
[312138012,1705666324655,-500.0,0.00024094,2]
[312138013,1705666324668,-690.35,0.00024094,2]
[312138014,1705666324682,-500.0,0.00024094,2]
[312138015,1705666324694,-500.0,0.00024094,2]
[312138016,1705666324706,-659.08,0.00024094,2]
[312138017,1705666324719,-500.0,0.00024094,2]
[312138018,1705666324731,-517.51487786,0.00024094,2]
[312138019,1705666324744,-924.43,0.00024094,2]
[312138020,1705666324757,-500.0,0.00024094,2]
[312138021,1705666324768,-500.0,0.00024094,2]
[312138022,1705666324781,-500.0,0.00024094,2]
[312138023,1705666324792,-500.0,0.00024094,2]
[312138024,1705666324804,-1191.14,0.00024094,2]
[312138025,1705666324816,-500.0,0.00024094,2]
[312138026,1705666324829,-730.5,0.00024094,2]
[312138027,1705666324841,-500.0,0.00024094,2]
[312138028,1705666324853,-557.03,0.00024094,2]
[312138029,1705666324866,-664.98,0.00024094,2]
[312138030,1705666324879,-1551.61,0.00024094,2]
[312138031,1705666324891,-500.0,0.00024094,2]
[312138032,1705666324903,-500.0,0.00024094,2]
[312138033,1705666324916,-500.0,0.00024094,2]
[312138034,1705666324928,-500.0,0.00024094,2]
[312138035,1705666324943,-1101.59,0.00024094,2]
[312138036,1705666324956,-500.0,0.00024094,2]
[312138037,1705666324968,-500.0,0.00024094,2]
[312138038,1705666324980,-500.0,0.00024094,2]
[312138039,1705666324992,-629.68,0.00024094,2]
[312138040,1705666325006,-500.0,0.00024094,2]
[312138041,1705666325020,-500.0,0.00024094,2]
[312138042,1705666325034,-738.94,0.00024094,2]
[312138043,1705666325047,-500.0,0.00024094,2]
[312138044,1705666325060,-500.0,0.00024094,2]
[312138045,1705666325072,-542.72100406,0.00024094,2]
[312138046,1705666325084,-500.0,0.00024094,2]
[312138047,1705666325096,-810.12,0.00024094,2]
[312138048,1705666325109,-537.48,0.00024094,2]
[312138049,1705666325124,-500.0,0.00024094,2]
[312138050,1705666325137,-500.0,0.00024094,2]
[312138051,1705666325151,-526.16,0.00024094,2]
[312138052,1705666325163,-500.0,0.00024094,2]
[312138053,1705666325534,-603.09,0.00024094,2]
[312138054,1705666325559,-1028.88,0.00024094,2]
[312138055,1705666325573,-500.0,0.00024094,2]
[312138056,1705666325585,-500.0,0.00024094,2]
[312138057,1705666325598,-500.0,0.00024094,2]
[312138058,1705666325610,-500.0,0.00024094,2]
[312138059,1705666325621,-953.72,0.00024094,2]
[312138060,1705666325632,-500.0,0.00024094,2]
[312138061,1705666325644,-711.06,0.00024094,2]
[312138062,1705666325655,-1427.07,0.00024094,2]
[312138063,1705666325667,-618.44,0.00024094,2]
[312138064,1705666325679,-1731.93,0.00024094,2]
[312138065,1705666325690,-747.42,0.00024094,2]
[312138066,1705666325702,-267.59851089,0.00024094,2]
[312138067,1705666325714,-500.0,0.00024094,2]
[312138068,1705666325726,-500.0,0.00024094,2]
[312138069,1705666325737,-500.0,0.00024094,2]
[312138070,1705666325749,-500.0,0.00024094,2]
[312138071,1705666325762,-638.91,0.00024094,2]
[312138072,1705666325773,-500.0,0.00024094,2]
[312138073,1705666325785,-587.67,0.00024094,2]
[312138074,1705666325795,-500.0,0.00024094,2]
[312138075,1705666325806,-520.81408871,0.00024094,2]
[312138076,1705666325817,-500.0,0.00024094,2]
[312138077,1705666325829,-507.42983029,0.00024094,2]
[312138078,1705666325842,-500.0,0.00024094,2]
[312138079,1705666325854,-556.3,0.00024094,2]
[312138080,1705666325865,-500.0,0.00024094,2]
[312138081,1705666325876,-500.0,0.00024094,2]
[312138082,1705666325887,-1190.14,0.00024094,2]
[312138083,1705666325899,-500.0,0.00024094,2]
[312138084,1705666325911,-514.57585997,0.00024094,2]
[312138085,1705666325923,-500.0,0.00024094,2]
[312138086,1705666325936,-653.45,0.00024094,2]
[312138087,1705666325947,-565.86,0.00024094,2]
[312138088,1705666325959,-500.0,0.00024094,2]
[312138089,1705666325971,-500.0,0.00024094,2]
[312138090,1705666325985,-500.0,0.00024094,2]
[312138091,1705666325997,-594.53,0.00024094,2]
[312138092,1705666326010,-508.94290698,0.00024094,2]
[312138093,1705666326023,-500.0,0.00024094,2]
[312138094,1705666326035,-730.94,0.00024094,2]
[312138095,1705666326047,-598.79696689,0.00024094,2]
[312138096,1705666326059,-500.0,0.00024094,2]
[312138097,1705666326070,-150.0,0.00024094,2]
[312138098,1705666326082,-150.0,0.00024094,2]
[312138099,1705666326093,-303.41525093,0.00024095,2]
[312138100,1705666326105,-535.04510086,0.00024095,2]
[312138101,1705666326116,-500.0,0.00024095,2]
[312138102,1705666326127,-500.0,0.00024095,2]
[312138103,1705666326139,-1439.31,0.00024095,2]
[312138104,1705666326150,-1221.48,0.00024095,2]
[312138105,1705666326161,-2355.38,0.00024095,2]
[312138106,1705666326174,-500.0,0.00024095,2]
[312138107,1705666326186,-1913.69,0.00024095,2]
[312138108,1705666326197,-558.84540019,0.00024095,2]
[312138109,1705666326209,-500.0,0.00024095,2]
[312138110,1705666326221,-500.0,0.00024095,2]
[312138111,1705666326233,-1389.84,0.00024095,2]
[312138112,1705666326245,-243.19436903,0.00024095,2]
[312138113,1705666326256,-500.0,0.00024095,2]
[312138114,1705666326268,-566.35,0.00024095,2]
[312138115,1705666326279,-500.0,0.00024095,2]
[312138116,1705666326290,-834.36,0.00024095,2]
[312138117,1705666326301,-899.48,0.00024095,2]
[312138118,1705666326313,-1018.63,0.00024095,2]
[312138119,1705666326323,-770.66,0.00024095,2]
[312138120,1705666326335,-602.31,0.00024095,2]
[312138121,1705666326346,-543.43,0.00024095,2]
[312138122,1705666326359,-1486.66,0.00024095,2]
[312138123,1705666326371,-1291.26,0.00024095,2]
[312138124,1705666326383,-946.18,0.00024095,2]
[312138125,1705666326394,-1374.09,0.00024095,2]
[312138126,1705666326406,-1903.0,0.00024095,2]
[312138127,1705666326419,-1394.03,0.00024095,2]
[312138128,1705666326431,-500.0,0.00024095,2]
[312138129,1705666326443,-1081.06,0.00024095,2]
[312138130,1705666326454,-613.64,0.00024095,2]
[312138131,1705666326467,-822.5,0.00024095,2]
[312138132,1705666326479,-988.14,0.00024095,2]
[312138133,1705666326490,-1134.32,0.00024095,2]
[312138134,1705666326500,-1114.34,0.00024095,2]
[312138135,1705666326512,-500.0,0.00024095,2]
[312138136,1705666326522,-500.0,0.00024095,2]
[312138137,1705666326533,-500.0,0.00024095,2]
[312138138,1705666326543,-1136.5,0.00024095,2]
[312138139,1705666326554,-657.2,0.00024095,2]
[312138140,1705666326566,-1517.72,0.00024095,2]
[312138141,1705666326577,-500.0,0.00024095,2]
[312138142,1705666326588,-1390.83,0.00024095,2]
[312138143,1705666326599,-500.0,0.00024095,2]
[312138144,1705666326611,-500.0,0.00024095,2]
[312138145,1705666326622,-624.44,0.00024095,2]
[312138146,1705666326633,-873.54,0.00024095,2]
[312138147,1705666326644,-500.0,0.00024095,2]
[312138148,1705666326655,-500.0,0.00024095,2]
[312138149,1705666326667,-1098.08,0.00024095,2]
[312138150,1705666326679,-1055.03,0.00024095,2]
[312138151,1705666326690,-1465.17,0.00024095,2]
[312138152,1705666326701,-1388.77,0.00024095,2]
[312138153,1705666326712,-751.33,0.00024095,2]
[312138154,1705666326725,-847.66,0.00024095,2]
[312138155,1705666326736,-1716.75,0.00024095,2]
[312138156,1705666326747,-1266.25,0.00024095,2]
[312138157,1705666326758,-1506.4,0.00024095,2]
[312138158,1705666326770,-1094.94,0.00024095,2]
[312138159,1705666326781,-1831.72,0.00024095,2]
[312138160,1705666326792,-1727.3,0.00024095,2]
[312138161,1705666326803,-1056.89,0.00024095,2]
[312138162,1705666326814,-500.0,0.00024095,2]
[312138163,1705666326825,-935.85,0.00024095,2]
[312138164,1705666326837,-1066.08,0.00024095,2]
[312138165,1705666326847,-1553.56,0.00024095,2]
[312138166,1705666326858,-2466.3,0.00024095,2]
[312138167,1705666326869,-1630.52,0.00024095,2]
[312138168,1705666326880,-1692.09,0.00024095,2]
[312138169,1705666326893,-1389.04,0.00024095,2]
[312138170,1705666326904,-1366.17,0.00024095,2]
[312138171,1705666326916,-456.15384611,0.000241,2]
[312138172,1705666326928,-154.86226234,0.00024103,2]
[312138173,1705666326940,-432.05,0.00024161,2]
[312138174,1705666326950,-876.0,0.000242,2]
[312138175,1705666326967,-250.0,0.000242,2]
[312138176,1705666326977,-250.0,0.000242,2]
[312138177,1705666326988,-250.0,0.000242,2]
[312138178,1705666326999,-250.0,0.000242,2]
[312138179,1705666327011,-250.0,0.000242,2]
[312138180,1705666327023,-250.0,0.000242,2]
[312138181,1705666327034,-275.5,0.000242,2]
[312138182,1705666327047,-1000.0,0.000242,2]
[312138183,1705666327058,-150.45,0.00024254,2]
[312138184,1705666327070,-169.33,0.00024256,2]
[312138185,1705666327081,-167.0,0.00024297,2]
[312138186,1705666327093,-432.05,0.00024334,2]
[312138187,1705666327104,-825.91,0.00024346,2]
[312138188,1705666327115,-12068.94,0.00024349,2]
[312138189,1705666327126,-1901.08,0.00024349,2]
[312138190,1705666327138,-975.74,0.00024349,2]
[312138191,1705666327150,-2659.65,0.00024349,2]
[312138192,1705666327161,-500.0,0.00024349,2]
[312138193,1705666327173,-564.95,0.00024349,2]
[312138194,1705666327185,-500.0,0.00024349,2]